[Event "Titled Tuesday Blitz June 6 Early 2023"]
[White "Yeritsyan, Hayk"]
[Black "Gavrilov, Maxim"]
[WhiteFideId "13307320"]
[BlackFideId "24271454"]
[WhiteElo "2450"]
[BlackElo "1969"]
[Result "1-0"]
[Round "8"]
[TimeControl "180+2"]
[Date "2023.06.06"]
[WhiteClock "0:00:05"]
[BlackClock "0:00:13"]
[Board "73"]

1. c4 {[%clk 0:03:00]}  g6 {[%clk 0:02:56]} 2. Nc3 {[%clk 0:03:00]}  Bg7 {[%clk 0:02:56]} 3. g3 {[%clk 0:03:01]}  Nf6 {[%clk 0:02:55]} 4. Bg2 {[%clk 0:03:01]}  O-O {[%clk 0:02:55]} 5. e4 {[%clk 0:03:01]}  d6 {[%clk 0:02:55]} 6. Nge2 {[%clk 0:03:01]}  Nbd7 {[%clk 0:02:50]} 7. d3 {[%clk 0:03:01]}  e5 {[%clk 0:02:50]} 8. O-O {[%clk 0:03:01]}  c6 {[%clk 0:02:50]} 9. h3 {[%clk 0:03:00]}  Nc5 {[%clk 0:02:49]} 10. f4 {[%clk 0:02:58]}  Ne6 {[%clk 0:02:49]} 11. f5 {[%clk 0:02:57]}  Nd4 {[%clk 0:02:48]} 12. g4 {[%clk 0:02:54]}  Ne8 {[%clk 0:02:47]} 13. Nxd4 {[%clk 0:02:50]}  exd4 {[%clk 0:02:46]} 14. Ne2 {[%clk 0:02:51]}  g5 {[%clk 0:02:47]} 15. Ng3 {[%clk 0:02:49]}  Be5 {[%clk 0:02:44]} 16. Nh5 {[%clk 0:02:47]}  f6 {[%clk 0:02:44]} 17. h4 {[%clk 0:02:45]}  h6 {[%clk 0:02:43]} 18. hxg5 {[%clk 0:02:42]}  hxg5 {[%clk 0:02:44]} 19. Kf2 {[%clk 0:02:42]}  Ng7 {[%clk 0:02:44]} 20. Rh1 {[%clk 0:02:42]}  Bd7 {[%clk 0:02:41]} 21. Bd2 {[%clk 0:02:40]}  Be8 {[%clk 0:02:41]} 22. Nxg7 {[%clk 0:02:38]}  Kxg7 {[%clk 0:02:42]} 23. Qf3 {[%clk 0:02:33]}  Bf7 {[%clk 0:02:41]} 24. Rh3 {[%clk 0:02:30]}  Rh8 {[%clk 0:02:41]} 25. Rxh8 {[%clk 0:02:28]}  Qxh8 {[%clk 0:02:34]} 26. Rh1 {[%clk 0:02:29]}  Qg8 {[%clk 0:02:16]} 27. Qh3 {[%clk 0:02:08]}  Kf8 {[%clk 0:02:15]} 28. Qh7 {[%clk 0:02:08]}  Qxh7 {[%clk 0:02:12]} 29. Rxh7 {[%clk 0:02:09]}  Bg8 {[%clk 0:02:09]} 30. Rxb7 {[%clk 0:02:07]}  Bf7 {[%clk 0:02:05]} 31. b4 {[%clk 0:02:04]}  Be8 {[%clk 0:01:59]} 32. a4 {[%clk 0:02:02]}  a6 {[%clk 0:01:48]} 33. Bf3 {[%clk 0:01:51]}  c5 {[%clk 0:01:27]} 34. Bd1 {[%clk 0:01:44]}  Bc6 {[%clk 0:01:22]} 35. Rb6 {[%clk 0:01:43]}  Bd7 {[%clk 0:01:20]} 36. a5 {[%clk 0:01:32]}  Ke7 {[%clk 0:01:17]} 37. b5 {[%clk 0:01:28]}  Kd8 {[%clk 0:01:13]} 38. bxa6 {[%clk 0:01:07]}  Kc7 {[%clk 0:01:09]} 39. Rb7+ {[%clk 0:01:01]}  Kc8 {[%clk 0:01:09]} 40. Rb6 {[%clk 0:00:41]}  Kc7 {[%clk 0:01:08]} 41. Kf3 {[%clk 0:00:33]}  Bc6 {[%clk 0:01:04]} 42. Be1 {[%clk 0:00:30]}  Rh8 {[%clk 0:01:01]} 43. Bf2 {[%clk 0:00:17]}  Rh3+ {[%clk 0:00:57]} 44. Ke2 {[%clk 0:00:18]}  Rh8 {[%clk 0:00:56]} 45. Kf1 {[%clk 0:00:17]}  Rb8 {[%clk 0:00:53]} 46. Rxb8 {[%clk 0:00:14]}  Kxb8 {[%clk 0:00:54]} 47. Kg2 {[%clk 0:00:14]}  Ka7 {[%clk 0:00:54]} 48. Be1 {[%clk 0:00:14]}  Kxa6 {[%clk 0:00:51]} 49. Kf3 {[%clk 0:00:15]}  Bf4 {[%clk 0:00:51]} 50. Ke2 {[%clk 0:00:14]}  Bc1 {[%clk 0:00:45]} 51. Bb3 {[%clk 0:00:13]}  Bf4 {[%clk 0:00:31]} 52. Kd1 {[%clk 0:00:14]}  Be8 {[%clk 0:00:26]} 53. Kc2 {[%clk 0:00:14]}  Bd7 {[%clk 0:00:26]} 54. Kb2 {[%clk 0:00:15]}  Be8 {[%clk 0:00:26]} 55. Ka2 {[%clk 0:00:14]}  Bd7 {[%clk 0:00:25]} 56. Bc2 {[%clk 0:00:13]}  Be8 {[%clk 0:00:24]} 57. Ka3 {[%clk 0:00:13]}  Bd7 {[%clk 0:00:23]} 58. Ba4 {[%clk 0:00:12]}  Bxa4 {[%clk 0:00:22]} 59. Kxa4 {[%clk 0:00:13]}  Be5 {[%clk 0:00:20]} 60. Bd2 {[%clk 0:00:13]}  Bf4 {[%clk 0:00:19]} 61. Bxf4 {[%clk 0:00:09]}  gxf4 {[%clk 0:00:20]} 62. g5 {[%clk 0:00:09]}  f3 {[%clk 0:00:18]} 63. gxf6 {[%clk 0:00:08]}  f2 {[%clk 0:00:18]} 64. f7 {[%clk 0:00:09]}  f1=Q {[%clk 0:00:18]} 65. f8=Q {[%clk 0:00:10]}  Qd1+ {[%clk 0:00:17]} 66. Ka3 {[%clk 0:00:09]}  Qxd3+ {[%clk 0:00:17]} 67. Kb2 {[%clk 0:00:09]}  Qc3+ {[%clk 0:00:16]} 68. Kb1 {[%clk 0:00:09]}  Qb3+ {[%clk 0:00:16]} 69. Ka1 {[%clk 0:00:10]}  Qa4+ {[%clk 0:00:16]} 70. Kb2 {[%clk 0:00:10]}  Qb4+ {[%clk 0:00:16]} 71. Ka1 {[%clk 0:00:10]}  Qxa5+ {[%clk 0:00:16]} 72. Kb2 {[%clk 0:00:10]}  Qc3+ {[%clk 0:00:16]} 73. Kb1 {[%clk 0:00:09]}  Qb3+ {[%clk 0:00:16]} 74. Ka1 {[%clk 0:00:09]}  Qa3+ {[%clk 0:00:16]} 75. Kb1 {[%clk 0:00:09]}  Qd3+ {[%clk 0:00:16]} 76. Kb2 {[%clk 0:00:08]}  Qe2+ {[%clk 0:00:15]} 77. Ka1 {[%clk 0:00:07]}  Qxc4 {[%clk 0:00:15]} 78. Qxd6+ {[%clk 0:00:07]}  Ka5 {[%clk 0:00:15]} 79. f6 {[%clk 0:00:05]}  Qa4+ {[%clk 0:00:14]} 80. Kb2 {[%clk 0:00:05]}  Qb4+ {[%clk 0:00:14]} 81. Kc2 {[%clk 0:00:05]}  Qc3+ {[%clk 0:00:14]} 82. Kd1 {[%clk 0:00:05]}  Qd3+ {[%clk 0:00:15]} 83. Kc1 {[%clk 0:00:03]}  Qe3+ {[%clk 0:00:13]} 84. Kb2 {[%clk 0:00:03]}  Qc3+ {[%clk 0:00:13]} 85. Kb1 {[%clk 0:00:03]}  Qb3+ {[%clk 0:00:13]} 86. Kc1 {[%clk 0:00:03]}  Qc4+ {[%clk 0:00:13]} 87. Kd2 {[%clk 0:00:04]}  Qc3+ {[%clk 0:00:13]} 88. Ke2 {[%clk 0:00:05]}  Qe3+ {[%clk 0:00:13]} 89. Kf1 {[%clk 0:00:05]}  Qf3+ {[%clk 0:00:12]} 90. Kg1 {[%clk 0:00:05]}  Kb4 {[%clk 0:00:13]} 91. Qb6+ {[%clk 0:00:04]}  Kc4 {[%clk 0:00:13]} 92. Qe6+ {[%clk 0:00:05]}  Kc3 {[%clk 0:00:13]} 93. f7 {[%clk 0:00:06]}  Qg3+ {[%clk 0:00:12]} 94. Kh1 {[%clk 0:00:06]}  Qh3+ {[%clk 0:00:12]} 95. Qxh3+ {[%clk 0:00:05]}  d3 {[%clk 0:00:12]} 96. f8=Q {[%clk 0:00:06]}  Kc2 {[%clk 0:00:13]} 97. Qxc5+ {[%clk 0:00:05]} 1-0


[Site "https://www.chess.com"]

[Event "Titled Tuesday Blitz June 6 Early 2023"]
[White "Terletsky, Oleg"]
[Black "ArchibaldCerveza29"]
[WhiteFideId "14116774"]
[WhiteElo "2126"]
[BlackElo "2446"]
[Result "1-0"]
[Round "8"]
[TimeControl "180+2"]
[Date "2023.06.06"]
[WhiteClock "0:00:47"]
[BlackClock "0:01:23"]
[Board "75"]

1. e4 {[%clk 0:02:56]}  e5 {[%clk 0:02:56]} 2. Nf3 {[%clk 0:02:56]}  Nc6 {[%clk 0:02:55]} 3. Nc3 {[%clk 0:02:56]}  Nf6 {[%clk 0:02:55]} 4. d4 {[%clk 0:02:57]}  exd4 {[%clk 0:02:55]} 5. Nxd4 {[%clk 0:02:58]}  Nxe4 {[%clk 0:02:53]} 6. Nxe4 {[%clk 0:02:53]}  Qe7 {[%clk 0:02:53]} 7. f3 {[%clk 0:02:54]}  d5 {[%clk 0:02:51]} 8. Bb5 {[%clk 0:02:51]}  Bd7 {[%clk 0:02:49]} 9. Bxc6 {[%clk 0:02:45]}  bxc6 {[%clk 0:02:50]} 10. O-O {[%clk 0:02:40]}  dxe4 {[%clk 0:02:49]} 11. fxe4 {[%clk 0:02:40]}  g6 {[%clk 0:02:37]} 12. Nb3 {[%clk 0:02:14]}  Bg7 {[%clk 0:02:34]} 13. Be3 {[%clk 0:02:05]}  a5 {[%clk 0:02:11]} 14. Bc5 {[%clk 0:02:03]}  Qe6 {[%clk 0:02:09]} 15. a4 {[%clk 0:01:56]}  Bxb2 {[%clk 0:02:07]} 16. Rb1 {[%clk 0:01:46]}  Be5 {[%clk 0:02:01]} 17. Qd3 {[%clk 0:01:35]}  Bc8 {[%clk 0:01:55]} 18. Nd4 {[%clk 0:01:29]}  Qd7 {[%clk 0:01:52]} 19. Rfd1 {[%clk 0:01:03]}  Ba6 {[%clk 0:01:48]} 20. Qxa6 {[%clk 0:01:03]}  Bxd4+ {[%clk 0:01:31]} 21. Rxd4 {[%clk 0:00:49]}  Rxa6 {[%clk 0:01:23]} 22. Rb8+ {[%clk 0:00:47]}  Qc8 {[%clk 0:01:23]} 23. Rxc8# {[%clk 0:00:47]} 1-0


[Site "https://www.chess.com"]

[Event "Titled Tuesday Blitz June 6 Early 2023"]
[White "Mogirzan, Matei-Valeriu"]
[Black "Malyi, Viacheslav"]
[WhiteFideId "1257455"]
[BlackFideId "14123983"]
[WhiteElo "1733"]
[BlackElo "2291"]
[Result "1/2-1/2"]
[Round "8"]
[TimeControl "180+2"]
[Date "2023.06.06"]
[WhiteClock "0:00:04"]
[BlackClock "0:00:32"]
[Board "76"]

1. e4 {[%clk 0:03:00]}  e5 {[%clk 0:02:59]} 2. f4 {[%clk 0:02:53]}  d5 {[%clk 0:02:58]} 3. Nf3 {[%clk 0:02:52]}  dxe4 {[%clk 0:02:58]} 4. Nxe5 {[%clk 0:02:51]}  Nd7 {[%clk 0:02:58]} 5. d4 {[%clk 0:02:50]}  exd3 {[%clk 0:02:57]} 6. Bxd3 {[%clk 0:02:49]}  Nxe5 {[%clk 0:02:57]} 7. fxe5 {[%clk 0:02:50]}  Bc5 {[%clk 0:02:42]} 8. Nc3 {[%clk 0:02:45]}  Qh4+ {[%clk 0:02:31]} 9. g3 {[%clk 0:02:43]}  Qg4 {[%clk 0:02:26]} 10. Bf4 {[%clk 0:02:11]}  Qxd1+ {[%clk 0:02:21]} 11. Rxd1 {[%clk 0:02:11]}  Bg4 {[%clk 0:02:21]} 12. Be2 {[%clk 0:02:09]}  Bxe2 {[%clk 0:02:17]} 13. Kxe2 {[%clk 0:02:08]}  c6 {[%clk 0:02:16]} 14. Ne4 {[%clk 0:02:05]}  Be7 {[%clk 0:02:15]} 15. Nd6+ {[%clk 0:02:03]}  Bxd6 {[%clk 0:02:15]} 16. Rxd6 {[%clk 0:01:46]}  Rd8 {[%clk 0:02:14]} 17. e6 {[%clk 0:01:29]}  Rxd6 {[%clk 0:02:10]} 18. exf7+ {[%clk 0:01:27]}  Kxf7 {[%clk 0:02:11]} 19. Bxd6 {[%clk 0:01:27]}  Nf6 {[%clk 0:02:11]} 20. Bc5 {[%clk 0:01:23]}  Re8+ {[%clk 0:02:10]} 21. Kf3 {[%clk 0:01:22]}  b6 {[%clk 0:02:07]} 22. Bd4 {[%clk 0:01:20]}  Nd5 {[%clk 0:02:01]} 23. c4 {[%clk 0:01:16]}  Nb4 {[%clk 0:01:57]} 24. a3 {[%clk 0:01:08]}  Nd3 {[%clk 0:01:57]} 25. Rd1 {[%clk 0:01:00]}  Ne5+ {[%clk 0:01:56]} 26. Bxe5 {[%clk 0:00:57]}  Rxe5 {[%clk 0:01:57]} 27. Rd7+ {[%clk 0:00:51]}  Re7 {[%clk 0:01:57]} 28. Rxe7+ {[%clk 0:00:49]}  Kxe7 {[%clk 0:01:58]} 29. Ke4 {[%clk 0:00:48]}  Ke6 {[%clk 0:01:59]} 30. g4 {[%clk 0:00:42]}  h6 {[%clk 0:01:55]} 31. Kf4 {[%clk 0:00:26]}  g6 {[%clk 0:01:52]} 32. h4 {[%clk 0:00:24]}  Kf6 {[%clk 0:01:50]} 33. g5+ {[%clk 0:00:20]}  hxg5+ {[%clk 0:01:51]} 34. hxg5+ {[%clk 0:00:21]}  Ke6 {[%clk 0:01:52]} 35. Ke4 {[%clk 0:00:21]}  Kd6 {[%clk 0:01:45]} 36. Kd4 {[%clk 0:00:17]}  Ke6 {[%clk 0:01:39]} 37. Ke4 {[%clk 0:00:13]}  a6 {[%clk 0:01:40]} 38. a4 {[%clk 0:00:11]}  a5 {[%clk 0:01:35]} 39. Kf4 {[%clk 0:00:06]}  Kd6 {[%clk 0:01:28]} 40. Ke4 {[%clk 0:00:05]}  Ke6 {[%clk 0:01:12]} 41. Kf4 {[%clk 0:00:04]}  Kd6 {[%clk 0:00:52]} 42. Ke4 {[%clk 0:00:04]}  Ke6 {[%clk 0:00:32]} 1/2-1/2


[Site "https://www.chess.com"]

[Event "Titled Tuesday Blitz June 6 Early 2023"]
[White "Ai, Evan"]
[Black "Gheorghiu, Calin"]
[WhiteFideId "2094770"]
[BlackFideId "1200305"]
[WhiteElo "1963"]
[BlackElo "2204"]
[Result "1-0"]
[Round "8"]
[TimeControl "180+2"]
[Date "2023.06.06"]
[WhiteClock "0:00:21"]
[BlackClock "0:00:05"]
[Board "77"]

1. e4 {[%clk 0:02:59]}  e6 {[%clk 0:02:58]} 2. d4 {[%clk 0:02:59]}  d5 {[%clk 0:02:57]} 3. Nd2 {[%clk 0:02:59]}  c5 {[%clk 0:02:55]} 4. exd5 {[%clk 0:03:00]}  exd5 {[%clk 0:02:54]} 5. Ngf3 {[%clk 0:03:01]}  Nf6 {[%clk 0:02:53]} 6. Bb5+ {[%clk 0:03:01]}  Nc6 {[%clk 0:02:53]} 7. Qe2+ {[%clk 0:03:00]}  Be7 {[%clk 0:02:50]} 8. Bxc6+ {[%clk 0:02:55]}  bxc6 {[%clk 0:02:50]} 9. dxc5 {[%clk 0:02:55]}  O-O {[%clk 0:02:48]} 10. Nb3 {[%clk 0:02:55]}  a5 {[%clk 0:02:43]} 11. a4 {[%clk 0:02:55]}  Ba6 {[%clk 0:02:41]} 12. Qe3 {[%clk 0:02:31]}  Re8 {[%clk 0:02:31]} 13. Ne5 {[%clk 0:02:29]}  Ng4 {[%clk 0:01:36]} 14. Nxg4 {[%clk 0:02:27]}  Bg5 {[%clk 0:01:34]} 15. Qxe8+ {[%clk 0:02:13]}  Qxe8+ {[%clk 0:01:25]} 16. Be3 {[%clk 0:02:13]}  d4 {[%clk 0:01:19]} 17. Nxd4 {[%clk 0:02:12]}  h5 {[%clk 0:01:19]} 18. O-O-O {[%clk 0:02:11]}  hxg4 {[%clk 0:00:48]} 19. Bxg5 {[%clk 0:02:11]}  Qe5 {[%clk 0:00:48]} 20. Be3 {[%clk 0:02:11]}  Qxc5 {[%clk 0:00:46]} 21. Nb3 {[%clk 0:01:29]}  Qb4 {[%clk 0:00:44]} 22. Rd4 {[%clk 0:01:29]}  Qb7 {[%clk 0:00:27]} 23. Nc5 {[%clk 0:01:19]}  Qe7 {[%clk 0:00:24]} 24. Rhd1 {[%clk 0:01:00]}  g6 {[%clk 0:00:16]} 25. Rd7 {[%clk 0:00:57]}  Qe5 {[%clk 0:00:15]} 26. Rd8+ {[%clk 0:00:55]}  Rxd8 {[%clk 0:00:12]} 27. Rxd8+ {[%clk 0:00:56]}  Kh7 {[%clk 0:00:13]} 28. Nxa6 {[%clk 0:00:56]}  Qxh2 {[%clk 0:00:11]} 29. g3 {[%clk 0:00:54]}  Qg1+ {[%clk 0:00:10]} 30. Rd1 {[%clk 0:00:53]}  Qg2 {[%clk 0:00:11]} 31. Nc5 {[%clk 0:00:51]}  Qf3 {[%clk 0:00:11]} 32. Nd7 {[%clk 0:00:48]}  Qf5 {[%clk 0:00:09]} 33. Rh1+ {[%clk 0:00:39]}  Kg8 {[%clk 0:00:09]} 34. Bd4 {[%clk 0:00:39]}  f6 {[%clk 0:00:09]} 35. Nxf6+ {[%clk 0:00:39]}  Kf7 {[%clk 0:00:09]} 36. Rh7+ {[%clk 0:00:40]}  Ke6 {[%clk 0:00:09]} 37. Rh8 {[%clk 0:00:31]}  Qf3 {[%clk 0:00:09]} 38. Re8+ {[%clk 0:00:30]}  Kf7 {[%clk 0:00:09]} 39. Re1 {[%clk 0:00:27]}  c5 {[%clk 0:00:08]} 40. Bc3 {[%clk 0:00:26]}  c4 {[%clk 0:00:08]} 41. Ne4 {[%clk 0:00:25]}  Kg8 {[%clk 0:00:07]} 42. Ng5 {[%clk 0:00:24]}  Qf8 {[%clk 0:00:05]} 43. Rh1 {[%clk 0:00:21]} 1-0


[Site "https://www.chess.com"]

[Event "Titled Tuesday Blitz June 6 Early 2023"]
[White "Afanasieva, Alexandra"]
[Black "Orujov2008"]
[WhiteFideId "34126926"]
[WhiteElo "1736"]
[BlackElo "2497"]
[Result "0-1"]
[Round "8"]
[TimeControl "180+2"]
[Date "2023.06.06"]
[WhiteClock "0:00:09"]
[BlackClock "0:00:50"]
[Board "79"]

1. e4 {[%clk 0:02:59]}  e5 {[%clk 0:03:00]} 2. Nf3 {[%clk 0:02:59]}  Nf6 {[%clk 0:03:00]} 3. Nxe5 {[%clk 0:02:58]}  Nxe4 {[%clk 0:03:01]} 4. Qe2 {[%clk 0:02:58]}  Qe7 {[%clk 0:03:01]} 5. Qxe4 {[%clk 0:02:57]}  d6 {[%clk 0:03:01]} 6. d4 {[%clk 0:02:58]}  dxe5 {[%clk 0:03:02]} 7. dxe5 {[%clk 0:02:58]}  Nc6 {[%clk 0:03:02]} 8. Bb5 {[%clk 0:02:56]}  Bd7 {[%clk 0:03:02]} 9. O-O {[%clk 0:02:44]}  O-O-O {[%clk 0:03:00]} 10. Re1 {[%clk 0:01:59]}  Nxe5 {[%clk 0:02:53]} 11. Bxd7+ {[%clk 0:01:51]}  Rxd7 {[%clk 0:02:50]} 12. Bf4 {[%clk 0:01:39]}  Ng6 {[%clk 0:02:40]} 13. Nc3 {[%clk 0:01:33]}  Qxe4 {[%clk 0:02:35]} 14. Rxe4 {[%clk 0:01:34]}  Bc5 {[%clk 0:02:27]} 15. Rae1 {[%clk 0:01:25]}  Nxf4 {[%clk 0:02:14]} 16. Rxf4 {[%clk 0:01:26]}  Rd2 {[%clk 0:02:14]} 17. Ne4 {[%clk 0:01:25]}  Rxc2 {[%clk 0:02:05]} 18. Nxc5 {[%clk 0:01:11]}  Rxc5 {[%clk 0:02:06]} 19. Rxf7 {[%clk 0:01:11]}  Rc2 {[%clk 0:01:58]} 20. Rxg7 {[%clk 0:01:05]}  Rxb2 {[%clk 0:01:57]} 21. h4 {[%clk 0:01:06]}  Rxa2 {[%clk 0:01:37]} 22. Ree7 {[%clk 0:01:06]}  Rc2 {[%clk 0:01:32]} 23. Rxh7 {[%clk 0:01:06]}  Rf8 {[%clk 0:01:32]} 24. Rhf7 {[%clk 0:01:05]}  Rh8 {[%clk 0:01:17]} 25. h5 {[%clk 0:00:48]}  b5 {[%clk 0:01:16]} 26. Rh7 {[%clk 0:00:43]}  Rxh7 {[%clk 0:01:00]} 27. Rxh7 {[%clk 0:00:43]}  b4 {[%clk 0:01:00]} 28. h6 {[%clk 0:00:38]}  b3 {[%clk 0:01:00]} 29. Rh8+ {[%clk 0:00:38]}  Kb7 {[%clk 0:00:58]} 30. h7 {[%clk 0:00:39]}  b2 {[%clk 0:00:54]} 31. Kh2 {[%clk 0:00:08]}  b1=Q {[%clk 0:00:53]} 32. Rd8 {[%clk 0:00:09]}  Rc1 {[%clk 0:00:50]} 0-1


[Site "https://www.chess.com"]

[Event "Titled Tuesday Blitz June 6 Early 2023"]
[White "Zaksaite, Salomeja"]
[Black "Atakhan, Abtin"]
[WhiteFideId "12801496"]
[BlackFideId "22502203"]
[WhiteElo "2059"]
[BlackElo "2008"]
[Result "0-1"]
[Round "8"]
[TimeControl "180+2"]
[Date "2023.06.06"]
[WhiteClock "0:00:01"]
[BlackClock "0:01:41"]
[Board "80"]

1. e4 {[%clk 0:03:00]}  c5 {[%clk 0:03:00]} 2. Nf3 {[%clk 0:03:00]}  d6 {[%clk 0:03:00]} 3. d4 {[%clk 0:03:00]}  cxd4 {[%clk 0:03:01]} 4. Nxd4 {[%clk 0:03:01]}  Nf6 {[%clk 0:03:02]} 5. Nc3 {[%clk 0:03:01]}  a6 {[%clk 0:03:02]} 6. Bc4 {[%clk 0:03:01]}  e6 {[%clk 0:03:02]} 7. Bb3 {[%clk 0:03:02]}  b5 {[%clk 0:03:00]} 8. Qf3 {[%clk 0:03:01]}  Qc7 {[%clk 0:02:56]} 9. Bg5 {[%clk 0:02:59]}  Be7 {[%clk 0:02:49]} 10. e5 {[%clk 0:02:42]}  dxe5 {[%clk 0:02:45]} 11. Nxe6 {[%clk 0:02:40]}  fxe6 {[%clk 0:02:43]} 12. Qxa8 {[%clk 0:02:38]}  Bb7 {[%clk 0:02:42]} 13. Qa7 {[%clk 0:00:57]}  Bc5 {[%clk 0:02:39]} 14. Qxc5 {[%clk 0:00:32]}  Qxc5 {[%clk 0:02:39]} 15. O-O-O {[%clk 0:00:29]}  b4 {[%clk 0:02:23]} 16. Na4 {[%clk 0:00:24]}  Qc7 {[%clk 0:02:16]} 17. Bxe6 {[%clk 0:00:21]}  Bxg2 {[%clk 0:02:13]} 18. Rhe1 {[%clk 0:00:20]}  Be4 {[%clk 0:02:12]} 19. Bb3 {[%clk 0:00:17]}  Bg6 {[%clk 0:02:01]} 20. Bf4 {[%clk 0:00:16]}  Nc6 {[%clk 0:01:59]} 21. Nc5 {[%clk 0:00:11]}  Bf7 {[%clk 0:01:49]} 22. Nxa6 {[%clk 0:00:10]}  Qb6 {[%clk 0:01:46]} 23. Bxe5 {[%clk 0:00:02]}  Nxe5 {[%clk 0:01:47]} 24. Rxe5+ {[%clk 0:00:02]}  Kf8 {[%clk 0:01:47]} 25. Nxb4 {[%clk 0:00:01]}  Qxb4 {[%clk 0:01:41]} 0-1


[Site "https://www.chess.com"]

[Event "Titled Tuesday Blitz June 6 Early 2023"]
[White "Goryachkina, Aleksandra"]
[Black "Makhmudov, Shukhrat"]
[WhiteFideId "4147103"]
[BlackFideId "14200775"]
[WhiteElo "2471"]
[BlackElo "2135"]
[Result "1-0"]
[Round "8"]
[TimeControl "180+2"]
[Date "2023.06.06"]
[WhiteClock "0:01:37"]
[BlackClock "0:01:03"]
[Board "81"]

1. e4 {[%clk 0:02:59]}  e5 {[%clk 0:03:00]} 2. Nf3 {[%clk 0:02:59]}  Nc6 {[%clk 0:03:00]} 3. Bc4 {[%clk 0:02:59]}  Nf6 {[%clk 0:03:00]} 4. d3 {[%clk 0:02:59]}  Bc5 {[%clk 0:02:59]} 5. c3 {[%clk 0:02:58]}  Bb6 {[%clk 0:03:00]} 6. Nbd2 {[%clk 0:02:53]}  d6 {[%clk 0:03:00]} 7. h3 {[%clk 0:02:51]}  Ne7 {[%clk 0:03:01]} 8. Nf1 {[%clk 0:02:47]}  c6 {[%clk 0:03:00]} 9. Ng3 {[%clk 0:02:47]}  Ng6 {[%clk 0:03:00]} 10. O-O {[%clk 0:02:39]}  O-O {[%clk 0:03:00]} 11. a4 {[%clk 0:02:37]}  h6 {[%clk 0:02:52]} 12. Bb3 {[%clk 0:02:19]}  Re8 {[%clk 0:02:48]} 13. Re1 {[%clk 0:02:11]}  Be6 {[%clk 0:02:34]} 14. Bc2 {[%clk 0:02:11]}  Bc7 {[%clk 0:02:24]} 15. d4 {[%clk 0:02:09]}  Nf4 {[%clk 0:01:58]} 16. Bxf4 {[%clk 0:02:03]}  exf4 {[%clk 0:01:58]} 17. Ne2 {[%clk 0:02:03]}  Nh5 {[%clk 0:01:49]} 18. Qd3 {[%clk 0:01:55]}  g6 {[%clk 0:01:44]} 19. Rad1 {[%clk 0:01:54]}  d5 {[%clk 0:01:42]} 20. e5 {[%clk 0:01:50]}  Bf5 {[%clk 0:01:39]} 21. Qd2 {[%clk 0:01:50]}  Bxc2 {[%clk 0:01:39]} 22. Qxc2 {[%clk 0:01:50]}  g5 {[%clk 0:01:19]} 23. Nh2 {[%clk 0:01:41]}  f6 {[%clk 0:01:03]} 24. Qg6+ {[%clk 0:01:39]}  Ng7 {[%clk 0:01:03]} 25. exf6 {[%clk 0:01:37]} 1-0


[Site "https://www.chess.com"]

[Event "Titled Tuesday Blitz June 6 Early 2023"]
[White "Marcziter, Dmitrii"]
[Black "Gomez Ledo, Roberto Carlos"]
[WhiteFideId "13900765"]
[BlackFideId "3507076"]
[WhiteElo "2162"]
[BlackElo "2378"]
[Result "1-0"]
[Round "8"]
[TimeControl "180+2"]
[Date "2023.06.06"]
[WhiteClock "0:01:38"]
[BlackClock "0:00:58"]
[Board "82"]

1. d4 {[%clk 0:03:00]}  Nf6 {[%clk 0:02:55]} 2. c4 {[%clk 0:03:00]}  e6 {[%clk 0:02:55]} 3. Nf3 {[%clk 0:03:00]}  d5 {[%clk 0:02:54]} 4. Nc3 {[%clk 0:02:58]}  dxc4 {[%clk 0:02:54]} 5. e3 {[%clk 0:02:55]}  c5 {[%clk 0:02:50]} 6. Bxc4 {[%clk 0:02:54]}  a6 {[%clk 0:02:51]} 7. O-O {[%clk 0:02:53]}  b5 {[%clk 0:02:48]} 8. Bd3 {[%clk 0:02:53]}  Bb7 {[%clk 0:02:48]} 9. Qe2 {[%clk 0:02:51]}  Nbd7 {[%clk 0:02:44]} 10. Rd1 {[%clk 0:02:49]}  Qc7 {[%clk 0:02:38]} 11. e4 {[%clk 0:02:40]}  c4 {[%clk 0:02:35]} 12. Bc2 {[%clk 0:02:39]}  Be7 {[%clk 0:02:35]} 13. Bg5 {[%clk 0:02:32]}  h6 {[%clk 0:02:29]} 14. Bh4 {[%clk 0:02:31]}  e5 {[%clk 0:01:53]} 15. Bg3 {[%clk 0:02:26]}  Bd6 {[%clk 0:01:28]} 16. dxe5 {[%clk 0:02:17]}  Bxe5 {[%clk 0:01:28]} 17. Nxe5 {[%clk 0:02:16]}  Nxe5 {[%clk 0:01:29]} 18. Nd5 {[%clk 0:02:12]}  Qb8 {[%clk 0:01:21]} 19. Nxf6+ {[%clk 0:01:51]}  gxf6 {[%clk 0:01:22]} 20. f4 {[%clk 0:01:41]}  Ng6 {[%clk 0:01:18]} 21. e5 {[%clk 0:01:39]}  fxe5 {[%clk 0:00:58]} 22. f5 {[%clk 0:01:38]} 1-0


[Site "https://www.chess.com"]

[Event "Titled Tuesday Blitz June 6 Early 2023"]
[White "zsizsi99"]
[Black "Gontcharov, Vladislav"]
[BlackFideId "4123492"]
[WhiteElo "2427"]
[BlackElo "2420"]
[Result "0-1"]
[Round "8"]
[TimeControl "180+2"]
[Date "2023.06.06"]
[WhiteClock "0:00:08"]
[BlackClock "0:00:16"]
[Board "83"]

1. e4 {[%clk 0:02:37]}  e6 {[%clk 0:02:59]} 2. d4 {[%clk 0:02:37]}  d5 {[%clk 0:02:59]} 3. exd5 {[%clk 0:02:38]}  exd5 {[%clk 0:02:58]} 4. Nc3 {[%clk 0:02:39]}  c6 {[%clk 0:02:50]} 5. Bf4 {[%clk 0:02:39]}  Bd6 {[%clk 0:02:48]} 6. Qd2 {[%clk 0:02:39]}  Ne7 {[%clk 0:02:48]} 7. O-O-O {[%clk 0:02:38]}  Bf5 {[%clk 0:02:47]} 8. f3 {[%clk 0:02:38]}  O-O {[%clk 0:02:40]} 9. g4 {[%clk 0:02:38]}  Bg6 {[%clk 0:02:39]} 10. h4 {[%clk 0:02:38]}  f5 {[%clk 0:02:25]} 11. h5 {[%clk 0:02:33]}  Bxf4 {[%clk 0:02:21]} 12. Qxf4 {[%clk 0:02:32]}  fxg4 {[%clk 0:02:21]} 13. Qg5 {[%clk 0:01:56]}  Rf5 {[%clk 0:02:03]} 14. Qxg4 {[%clk 0:01:56]}  Be8 {[%clk 0:01:53]} 15. Bd3 {[%clk 0:01:50]}  Rf6 {[%clk 0:01:47]} 16. Re1 {[%clk 0:01:39]}  Nd7 {[%clk 0:01:28]} 17. Nh3 {[%clk 0:01:37]}  Nf8 {[%clk 0:01:28]} 18. Rhg1 {[%clk 0:01:34]}  g6 {[%clk 0:01:19]} 19. Qg5 {[%clk 0:01:33]}  Nf5 {[%clk 0:01:08]} 20. Bxf5 {[%clk 0:01:29]}  Rxf5 {[%clk 0:01:08]} 21. Qxf5 {[%clk 0:01:29]}  Bd7 {[%clk 0:01:04]} 22. Qe5 {[%clk 0:01:06]}  Bxh3 {[%clk 0:01:03]} 23. hxg6 {[%clk 0:01:07]}  Nxg6 {[%clk 0:01:01]} 24. Qh5 {[%clk 0:01:05]}  Qd7 {[%clk 0:00:55]} 25. Rg3 {[%clk 0:00:46]}  Bf5 {[%clk 0:00:54]} 26. Qg5 {[%clk 0:00:23]}  Rf8 {[%clk 0:00:43]} 27. Re7 {[%clk 0:00:23]}  Qd6 {[%clk 0:00:32]} 28. Rxb7 {[%clk 0:00:21]}  Bd7 {[%clk 0:00:26]} 29. Rxa7 {[%clk 0:00:19]}  Qe6 {[%clk 0:00:25]} 30. Rg1 {[%clk 0:00:18]}  Rxf3 {[%clk 0:00:24]} 31. Ra8+ {[%clk 0:00:18]}  Kg7 {[%clk 0:00:23]} 32. a3 {[%clk 0:00:15]}  Rf2 {[%clk 0:00:21]} 33. Kb1 {[%clk 0:00:15]}  Qf7 {[%clk 0:00:20]} 34. Rc1 {[%clk 0:00:14]}  Bf5 {[%clk 0:00:19]} 35. Ra6 {[%clk 0:00:11]}  Qd7 {[%clk 0:00:18]} 36. Qg3 {[%clk 0:00:10]}  Rf4 {[%clk 0:00:18]} 37. Qg1 {[%clk 0:00:10]}  Rg4 {[%clk 0:00:18]} 38. Qe3 {[%clk 0:00:09]}  h5 {[%clk 0:00:18]} 39. Qf3 {[%clk 0:00:09]}  h4 {[%clk 0:00:18]} 40. Qe2 {[%clk 0:00:09]}  h3 {[%clk 0:00:18]} 41. Nd1 {[%clk 0:00:09]}  Rg2 {[%clk 0:00:17]} 42. Qf3 {[%clk 0:00:08]}  Be4 {[%clk 0:00:17]} 43. Qh5 {[%clk 0:00:08]}  Qf5 {[%clk 0:00:17]} 44. Ne3 {[%clk 0:00:08]}  Qxh5 {[%clk 0:00:16]} 45. Nxg2 {[%clk 0:00:08]}  hxg2 {[%clk 0:00:16]} 0-1


[Site "https://www.chess.com"]